[Event "Titled Tuesday Blitz March 14 Late 2023"]
[White "Kraus, Tomas"]
[Black "Kurtz, Eric M"]
[WhiteFideId "331708"]
[BlackFideId "30939763"]
[WhiteElo "2389"]
[BlackElo "2568"]
[Result "0-1"]
[Round "07"]
[TimeControl "180+2"]
[Date "2023.03.14"]
[WhiteClock "0:00:01"]
[BlackClock "0:00:55"]

1. e4 {[%clk 0:03:00]}  d6 {[%clk 0:02:59]} 2. d4 {[%clk 0:03:00]}  Nf6 {[%clk 0:03:00]} 3. Nc3 {[%clk 0:03:01]}  g6 {[%clk 0:03:00]} 4. g3 {[%clk 0:03:02]}  Bg7 {[%clk 0:03:00]} 5. Bg2 {[%clk 0:03:02]}  O-O {[%clk 0:03:01]} 6. Nge2 {[%clk 0:03:02]}  e5 {[%clk 0:03:02]} 7. O-O {[%clk 0:03:02]}  c6 {[%clk 0:03:02]} 8. a4 {[%clk 0:03:02]}  a5 {[%clk 0:03:02]} 9. Re1 {[%clk 0:03:01]}  Na6 {[%clk 0:03:03]} 10. h3 {[%clk 0:03:01]}  Nb4 {[%clk 0:03:03]} 11. Be3 {[%clk 0:02:59]}  Be6 {[%clk 0:03:02]} 12. Qd2 {[%clk 0:02:57]}  Bc4 {[%clk 0:03:03]} 13. Rad1 {[%clk 0:02:50]}  Re8 {[%clk 0:03:02]} 14. b3 {[%clk 0:02:48]}  Ba6 {[%clk 0:03:01]} 15. f4 {[%clk 0:02:42]}  d5 {[%clk 0:02:58]} 16. fxe5 {[%clk 0:02:37]}  Nxe4 {[%clk 0:02:58]} 17. Nxe4 {[%clk 0:02:35]}  dxe4 {[%clk 0:02:59]} 18. Bxe4 {[%clk 0:02:30]}  f6 {[%clk 0:02:56]} 19. c3 {[%clk 0:02:22]}  Nd5 {[%clk 0:02:56]} 20. Bxd5+ {[%clk 0:02:02]}  Qxd5 {[%clk 0:02:55]} 21. Nf4 {[%clk 0:02:02]}  Qxb3 {[%clk 0:02:46]} 22. exf6 {[%clk 0:02:01]}  Bxf6 {[%clk 0:02:45]} 23. Rc1 {[%clk 0:01:47]}  Re7 {[%clk 0:02:38]} 24. Nd3 {[%clk 0:01:43]}  Bxd3 {[%clk 0:02:37]} 25. Qxd3 {[%clk 0:01:43]}  Rae8 {[%clk 0:02:37]} 26. Qd2 {[%clk 0:01:17]}  Re4 {[%clk 0:01:58]} 27. Bh6 {[%clk 0:01:16]}  Bxd4+ {[%clk 0:01:37]} 28. Qxd4 {[%clk 0:00:30]}  Rxe1+ {[%clk 0:01:35]} 29. Rxe1 {[%clk 0:00:29]}  Rxe1+ {[%clk 0:01:26]} 30. Kf2 {[%clk 0:00:29]}  Re7 {[%clk 0:01:12]} 31. Qd8+ {[%clk 0:00:26]}  Kf7 {[%clk 0:01:12]} 32. Qf8+ {[%clk 0:00:27]}  Ke6 {[%clk 0:01:12]} 33. Qg8+ {[%clk 0:00:27]}  Rf7+ {[%clk 0:01:13]} 34. Bf4 {[%clk 0:00:19]}  Qc2+ {[%clk 0:01:11]} 35. Kf3 {[%clk 0:00:18]}  Qd3+ {[%clk 0:01:10]} 36. Kf2 {[%clk 0:00:17]}  Qd7 {[%clk 0:01:06]} 37. Qb8 {[%clk 0:00:14]}  Rf5 {[%clk 0:01:02]} 38. Qg8+ {[%clk 0:00:12]}  Qf7 {[%clk 0:01:01]} 39. Qc8+ {[%clk 0:00:12]}  Kd5 {[%clk 0:01:01]} 40. Qd8+ {[%clk 0:00:06]}  Kc4 {[%clk 0:00:56]} 41. Qd4+ {[%clk 0:00:06]}  Kb3 {[%clk 0:00:56]} 42. Qd1+ {[%clk 0:00:05]}  Kxc3 {[%clk 0:00:56]} 43. Qd2+ {[%clk 0:00:05]}  Kb3 {[%clk 0:00:55]} 44. Qd1+ {[%clk 0:00:05]}  Kb4 {[%clk 0:00:56]} 45. Qd2+ {[%clk 0:00:05]}  Kxa4 {[%clk 0:00:56]} 46. Qc2+ {[%clk 0:00:04]}  Kb5 {[%clk 0:00:56]} 47. Qb2+ {[%clk 0:00:03]}  Ka6 {[%clk 0:00:56]} 48. Qe2+ {[%clk 0:00:01]}  b5 {[%clk 0:00:57]} 49. Qe3 {[%clk 0:00:01]}  Qa7 {[%clk 0:00:55]} 0-1


[Site "https://www.chess.com"]

[Event "Titled Tuesday Blitz March 14 Late 2023"]
[White "Gasparyan, David"]
[Black "Abrosimov, Vladimir"]
[WhiteFideId "13311980"]
[BlackFideId "4166892"]
[WhiteElo "2496"]
[BlackElo "2336"]
[Result "1-0"]
[Round "07"]
[TimeControl "180+2"]
[Date "2023.03.14"]
[WhiteClock "0:02:41"]
[BlackClock "0:02:17"]

1. Nf3 {[%clk 0:03:00]}  d5 {[%clk 0:02:59]} 2. g3 {[%clk 0:03:00]}  c6 {[%clk 0:03:00]} 3. Bg2 {[%clk 0:03:01]}  Nf6 {[%clk 0:03:00]} 4. d4 {[%clk 0:03:01]}  Bf5 {[%clk 0:03:00]} 5. O-O {[%clk 0:03:02]}  h6 {[%clk 0:03:01]} 6. c4 {[%clk 0:03:02]}  Nbd7 {[%clk 0:03:01]} 7. cxd5 {[%clk 0:03:03]}  cxd5 {[%clk 0:03:01]} 8. Nc3 {[%clk 0:03:04]}  a6 {[%clk 0:03:00]} 9. Ne5 {[%clk 0:03:04]}  e6 {[%clk 0:02:59]} 10. f3 {[%clk 0:03:01]}  Bd6 {[%clk 0:02:55]} 11. e4 {[%clk 0:03:00]}  dxe4 {[%clk 0:02:54]} 12. fxe4 {[%clk 0:03:01]}  Bg4 {[%clk 0:02:54]} 13. Nxg4 {[%clk 0:03:01]}  Nxg4 {[%clk 0:02:50]} 14. Qxg4 {[%clk 0:03:02]}  Qb6 {[%clk 0:02:47]} 15. Qxg7 {[%clk 0:02:58]}  Rf8 {[%clk 0:02:47]} 16. Be3 {[%clk 0:02:51]}  Qxb2 {[%clk 0:02:47]} 17. Rfc1 {[%clk 0:02:49]}  b5 {[%clk 0:02:42]} 18. Rab1 {[%clk 0:02:48]}  Qa3 {[%clk 0:02:42]} 19. e5 {[%clk 0:02:48]}  Be7 {[%clk 0:02:39]} 20. Bxa8 {[%clk 0:02:48]}  b4 {[%clk 0:02:31]} 21. Rb3 {[%clk 0:02:44]}  Qa5 {[%clk 0:02:24]} 22. Ne4 {[%clk 0:02:44]}  Qb5 {[%clk 0:02:18]} 23. Rc8+ {[%clk 0:02:42]}  Bd8 {[%clk 0:02:17]} 24. Nd6+ {[%clk 0:02:41]} 1-0


[Site "https://www.chess.com"]

[Event "Titled Tuesday Blitz March 14 Late 2023"]
[White "Mendez Machado, Andre"]
[Black "ArchibaldCerveza29"]
[WhiteFideId "6603793"]
[WhiteElo "1984"]
[BlackElo "2491"]
[Result "0-1"]
[Round "07"]
[TimeControl "180+2"]
[Date "2023.03.14"]
[WhiteClock "0:00:01"]
[BlackClock "0:00:35"]

1. e4 {[%clk 0:02:55]}  e5 {[%clk 0:02:58]} 2. Nf3 {[%clk 0:02:54]}  Nc6 {[%clk 0:02:58]} 3. Bc4 {[%clk 0:02:51]}  Nf6 {[%clk 0:02:57]} 4. Ng5 {[%clk 0:02:51]}  d5 {[%clk 0:02:51]} 5. exd5 {[%clk 0:02:52]}  Na5 {[%clk 0:02:51]} 6. Bb5+ {[%clk 0:02:52]}  c6 {[%clk 0:02:52]} 7. dxc6 {[%clk 0:02:53]}  bxc6 {[%clk 0:02:53]} 8. Bd3 {[%clk 0:02:53]}  Nd5 {[%clk 0:02:51]} 9. Nf3 {[%clk 0:02:53]}  Bd6 {[%clk 0:02:50]} 10. O-O {[%clk 0:02:53]}  O-O {[%clk 0:02:50]} 11. Re1 {[%clk 0:02:54]}  f5 {[%clk 0:02:51]} 12. Nxe5 {[%clk 0:02:54]}  Bxe5 {[%clk 0:02:52]} 13. Rxe5 {[%clk 0:02:52]}  Qf6 {[%clk 0:02:50]} 14. Re1 {[%clk 0:02:48]}  f4 {[%clk 0:02:44]} 15. Nc3 {[%clk 0:02:42]}  Qg5 {[%clk 0:02:35]} 16. Be4 {[%clk 0:01:17]}  Rf6 {[%clk 0:02:09]} 17. Qf3 {[%clk 0:00:16]}  Be6 {[%clk 0:01:43]} 18. Bxd5 {[%clk 0:00:16]}  cxd5 {[%clk 0:01:41]} 19. d3 {[%clk 0:00:15]}  Nc6 {[%clk 0:01:40]} 20. Kh1 {[%clk 0:00:08]}  Rd8 {[%clk 0:01:34]} 21. Ne2 {[%clk 0:00:07]}  Rdf8 {[%clk 0:01:16]} 22. d4 {[%clk 0:00:07]}  Qh4 {[%clk 0:01:09]} 23. Bxf4 {[%clk 0:00:05]}  Rxf4 {[%clk 0:01:01]} 24. Nxf4 {[%clk 0:00:05]}  Rxf4 {[%clk 0:01:02]} 25. Qc3 {[%clk 0:00:05]}  Nxd4 {[%clk 0:00:32]} 26. g3 {[%clk 0:00:05]}  Qh3 {[%clk 0:00:32]} 27. gxf4 {[%clk 0:00:04]}  Nf3 {[%clk 0:00:33]} 28. Qxf3 {[%clk 0:00:01]}  Qxf3+ {[%clk 0:00:34]} 29. Kg1 {[%clk 0:00:01]}  Bh3 {[%clk 0:00:35]} 30. Re8+ {[%clk 0:00:01]}  Kf7 {[%clk 0:00:35]} 0-1


[Site "https://www.chess.com"]

[Event "Titled Tuesday Blitz March 14 Late 2023"]
[White "Biriukov, Ilja"]
[Black "Tymrakiewicz, Rafal"]
[WhiteFideId "4113373"]
[BlackFideId "1108832"]
[WhiteElo "2426"]
[BlackElo "2151"]
[Result "1-0"]
[Round "07"]
[TimeControl "180+2"]
[Date "2023.03.14"]
[WhiteClock "0:00:20"]
[BlackClock "0:00:03"]

1. c4 {[%clk 0:03:00]}  c6 {[%clk 0:02:59]} 2. Nc3 {[%clk 0:03:00]}  d5 {[%clk 0:02:59]} 3. e3 {[%clk 0:03:00]}  g6 {[%clk 0:02:58]} 4. Nf3 {[%clk 0:02:59]}  Bg7 {[%clk 0:02:58]} 5. b3 {[%clk 0:02:57]}  e5 {[%clk 0:02:56]} 6. Bb2 {[%clk 0:02:55]}  d4 {[%clk 0:02:56]} 7. exd4 {[%clk 0:02:54]}  exd4 {[%clk 0:02:57]} 8. Ne4 {[%clk 0:02:52]}  Bf5 {[%clk 0:02:27]} 9. Ng3 {[%clk 0:02:49]}  Be6 {[%clk 0:02:03]} 10. d3 {[%clk 0:02:43]}  Ne7 {[%clk 0:01:57]} 11. Be2 {[%clk 0:02:39]}  O-O {[%clk 0:01:57]} 12. O-O {[%clk 0:02:39]}  Re8 {[%clk 0:01:55]} 13. Re1 {[%clk 0:02:37]}  Nf5 {[%clk 0:01:52]} 14. Bf1 {[%clk 0:02:29]}  Nxg3 {[%clk 0:01:48]} 15. hxg3 {[%clk 0:02:29]}  a5 {[%clk 0:01:46]} 16. Qd2 {[%clk 0:02:25]}  Na6 {[%clk 0:01:43]} 17. a3 {[%clk 0:02:19]}  Nc5 {[%clk 0:01:41]} 18. Qc2 {[%clk 0:02:18]}  a4 {[%clk 0:01:41]} 19. b4 {[%clk 0:02:17]}  Nb3 {[%clk 0:01:41]} 20. Rad1 {[%clk 0:02:16]}  b5 {[%clk 0:01:41]} 21. c5 {[%clk 0:02:08]}  Qd5 {[%clk 0:01:38]} 22. Re2 {[%clk 0:01:58]}  Bg4 {[%clk 0:01:27]} 23. Rde1 {[%clk 0:01:49]}  Kf8 {[%clk 0:01:26]} 24. Rxe8+ {[%clk 0:01:47]}  Rxe8 {[%clk 0:01:25]} 25. Rxe8+ {[%clk 0:01:47]}  Kxe8 {[%clk 0:01:26]} 26. Qe2+ {[%clk 0:01:46]}  Kf8 {[%clk 0:01:21]} 27. Qd1 {[%clk 0:01:32]}  Bf6 {[%clk 0:01:12]} 28. Be2 {[%clk 0:01:31]}  h5 {[%clk 0:01:08]} 29. Nh2 {[%clk 0:01:23]}  Bxe2 {[%clk 0:01:08]} 30. Qxe2 {[%clk 0:01:23]}  Qg5 {[%clk 0:01:00]} 31. Nf3 {[%clk 0:01:20]}  Qd5 {[%clk 0:00:58]} 32. Ne1 {[%clk 0:01:14]}  Kg7 {[%clk 0:00:47]} 33. f4 {[%clk 0:01:12]}  Nxc5 {[%clk 0:00:21]} 34. bxc5 {[%clk 0:01:10]}  Qxc5 {[%clk 0:00:22]} 35. Qc2 {[%clk 0:00:59]}  Qd5 {[%clk 0:00:16]} 36. Nf3 {[%clk 0:00:59]}  c5 {[%clk 0:00:16]} 37. Bc1 {[%clk 0:00:54]}  c4 {[%clk 0:00:16]} 38. Qb2 {[%clk 0:00:49]}  c3 {[%clk 0:00:14]} 39. Qc2 {[%clk 0:00:49]}  Qb3 {[%clk 0:00:15]} 40. Ne1 {[%clk 0:00:46]}  Be7 {[%clk 0:00:12]} 41. Kf2 {[%clk 0:00:45]}  b4 {[%clk 0:00:12]} 42. axb4 {[%clk 0:00:44]}  Bxb4 {[%clk 0:00:13]} 43. Kf3 {[%clk 0:00:41]}  f5 {[%clk 0:00:12]} 44. Ke2 {[%clk 0:00:40]}  Bc5 {[%clk 0:00:11]} 45. Kd1 {[%clk 0:00:40]}  Bd6 {[%clk 0:00:08]} 46. Nf3 {[%clk 0:00:39]}  Bc5 {[%clk 0:00:07]} 47. Ne5 {[%clk 0:00:39]}  Qb7 {[%clk 0:00:05]} 48. Nc4 {[%clk 0:00:36]}  Qe7 {[%clk 0:00:04]} 49. Qxa4 {[%clk 0:00:34]}  h4 {[%clk 0:00:04]} 50. Qc6 {[%clk 0:00:30]}  hxg3 {[%clk 0:00:03]} 51. Qf3 {[%clk 0:00:29]}  g5 {[%clk 0:00:02]} 52. Qxg3 {[%clk 0:00:28]}  g4 {[%clk 0:00:02]} 53. Qe1 {[%clk 0:00:26]}  Qxe1+ {[%clk 0:00:01]} 54. Kxe1 {[%clk 0:00:26]}  Kf6 {[%clk 0:00:02]} 55. Kd1 {[%clk 0:00:24]}  Be7 {[%clk 0:00:02]} 56. Kc2 {[%clk 0:00:23]}  Bc5 {[%clk 0:00:02]} 57. Ne5 {[%clk 0:00:22]}  Ba7 {[%clk 0:00:03]} 58. Kb3 {[%clk 0:00:21]}  Bb8 {[%clk 0:00:03]} 59. Nd7+ {[%clk 0:00:19]}  Ke6 {[%clk 0:00:02]} 60. Nxb8 {[%clk 0:00:19]}  Kd5 {[%clk 0:00:03]} 61. g3 {[%clk 0:00:19]}  Kd6 {[%clk 0:00:02]} 62. Na6 {[%clk 0:00:19]}  Kd5 {[%clk 0:00:03]} 63. Nb4+ {[%clk 0:00:19]}  Kc5 {[%clk 0:00:03]} 64. Nc2 {[%clk 0:00:20]}  Kd5 {[%clk 0:00:03]} 65. Ba3 {[%clk 0:00:20]}  Kc6 {[%clk 0:00:03]} 66. Kc4 {[%clk 0:00:20]} 1-0


[Site "https://www.chess.com"]

[Event "Titled Tuesday Blitz March 14 Late 2023"]
[White "Khatena, Moshe"]
[Black "Blanco Acevedo, Cristobal Jose"]
[WhiteFideId "2010461"]
[BlackFideId "3900525"]
[WhiteElo "2220"]
[BlackElo "2278"]
[Result "0-1"]
[Round "07"]
[TimeControl "180+2"]
[Date "2023.03.14"]
[WhiteClock "0:01:36"]
[BlackClock "0:02:00"]

1. e4 {[%clk 0:02:52]}  c5 {[%clk 0:02:59]} 2. b3 {[%clk 0:02:52]}  d6 {[%clk 0:02:57]} 3. Bb2 {[%clk 0:02:52]}  Nc6 {[%clk 0:02:58]} 4. Bb5 {[%clk 0:02:51]}  Bd7 {[%clk 0:02:58]} 5. f4 {[%clk 0:02:49]}  Nf6 {[%clk 0:02:53]} 6. Qe2 {[%clk 0:02:50]}  e6 {[%clk 0:02:52]} 7. Nf3 {[%clk 0:02:47]}  Be7 {[%clk 0:02:52]} 8. O-O {[%clk 0:02:47]}  O-O {[%clk 0:02:52]} 9. d3 {[%clk 0:02:47]}  a6 {[%clk 0:02:49]} 10. Bxc6 {[%clk 0:02:47]}  Bxc6 {[%clk 0:02:50]} 11. Nbd2 {[%clk 0:02:45]}  b5 {[%clk 0:02:48]} 12. e5 {[%clk 0:02:43]}  Nd5 {[%clk 0:02:47]} 13. g3 {[%clk 0:02:44]}  Bb7 {[%clk 0:02:38]} 14. exd6 {[%clk 0:02:40]}  Qxd6 {[%clk 0:02:35]} 15. Ne4 {[%clk 0:02:40]}  Qc6 {[%clk 0:02:35]} 16. Ne5 {[%clk 0:02:39]}  Qc7 {[%clk 0:02:33]} 17. f5 {[%clk 0:02:38]}  f6 {[%clk 0:02:27]} 18. Nf3 {[%clk 0:02:18]}  exf5 {[%clk 0:02:27]} 19. Ned2 {[%clk 0:02:11]}  Bd6 {[%clk 0:02:26]} 20. Qe6+ {[%clk 0:02:10]}  Kh8 {[%clk 0:02:24]} 21. Qxf5 {[%clk 0:02:11]}  Ne3 {[%clk 0:02:22]} 22. Qh5 {[%clk 0:02:02]}  Nxf1 {[%clk 0:02:21]} 23. Rxf1 {[%clk 0:02:03]}  Rae8 {[%clk 0:02:20]} 24. Nh4 {[%clk 0:02:01]}  Kg8 {[%clk 0:02:10]} 25. Nf5 {[%clk 0:01:56]}  Be5 {[%clk 0:02:10]} 26. Bc1 {[%clk 0:01:39]}  Bd4+ {[%clk 0:02:06]} 27. Rf2 {[%clk 0:01:36]}  Re1+ {[%clk 0:02:01]} 28. Nf1 {[%clk 0:01:36]}  Qc6 {[%clk 0:02:00]} 0-1


[Site "https://www.chess.com"]

[Event "Titled Tuesday Blitz March 14 Late 2023"]
[White "Fernandez Hernandez, Gerardo"]
[Black "Kielinkei"]
[WhiteFideId "2207400"]
[WhiteElo "2213"]
[BlackElo "2423"]
[Result "0-1"]
[Round "07"]
[TimeControl "180+2"]
[Date "2023.03.14"]
[WhiteClock "0:01:00"]
[BlackClock "0:00:51"]

1. e4 {[%clk 0:03:00]}  c5 {[%clk 0:02:54]} 2. d3 {[%clk 0:03:00]}  Nc6 {[%clk 0:02:51]} 3. g3 {[%clk 0:03:00]}  d5 {[%clk 0:02:50]} 4. Nd2 {[%clk 0:02:59]}  Nf6 {[%clk 0:02:47]} 5. Bg2 {[%clk 0:02:58]}  dxe4 {[%clk 0:02:44]} 6. dxe4 {[%clk 0:02:57]}  Bg4 {[%clk 0:02:28]} 7. f3 {[%clk 0:02:57]}  Bh5 {[%clk 0:02:22]} 8. Ne2 {[%clk 0:02:54]}  e6 {[%clk 0:02:14]} 9. O-O {[%clk 0:02:50]}  Be7 {[%clk 0:02:13]} 10. c3 {[%clk 0:02:48]}  O-O {[%clk 0:02:13]} 11. Nf4 {[%clk 0:02:47]}  Bg6 {[%clk 0:02:13]} 12. Nc4 {[%clk 0:02:44]}  Qc7 {[%clk 0:02:10]} 13. Qe2 {[%clk 0:02:33]}  b5 {[%clk 0:02:06]} 14. Na3 {[%clk 0:02:24]}  a6 {[%clk 0:02:06]} 15. Be3 {[%clk 0:02:19]}  c4 {[%clk 0:02:02]} 16. Nc2 {[%clk 0:02:14]}  Rfd8 {[%clk 0:01:56]} 17. Rad1 {[%clk 0:02:12]}  Rxd1 {[%clk 0:01:29]} 18. Rxd1 {[%clk 0:02:12]}  Rd8 {[%clk 0:01:30]} 19. Rxd8+ {[%clk 0:02:10]}  Qxd8 {[%clk 0:01:28]} 20. Qd2 {[%clk 0:02:08]}  Qc7 {[%clk 0:01:14]} 21. Kf2 {[%clk 0:01:58]}  Ne5 {[%clk 0:01:05]} 22. Bd4 {[%clk 0:01:44]}  Bc5 {[%clk 0:00:57]} 23. Bxc5 {[%clk 0:01:33]}  Qxc5+ {[%clk 0:00:58]} 24. Qe3 {[%clk 0:01:32]}  Neg4+ {[%clk 0:00:56]} 25. fxg4 {[%clk 0:01:25]}  Nxg4+ {[%clk 0:00:56]} 26. Ke2 {[%clk 0:01:25]}  Nxe3 {[%clk 0:00:57]} 27. Nxe3 {[%clk 0:01:24]}  Qd6 {[%clk 0:00:52]} 28. h4 {[%clk 0:01:07]}  f6 {[%clk 0:00:52]} 29. Nxg6 {[%clk 0:01:06]}  hxg6 {[%clk 0:00:53]} 30. Kf3 {[%clk 0:01:00]}  Qd2 {[%clk 0:00:51]} 0-1


[Site "https://www.chess.com"]

[Event "Titled Tuesday Blitz March 14 Late 2023"]
[White "ritanovikova"]
[Black "Buchenau, Frank"]
[BlackFideId "4604350"]
[WhiteElo "2181"]
[BlackElo "2157"]
[Result "1-0"]
[Round "07"]
[TimeControl "180+2"]
[Date "2023.03.14"]
[WhiteClock "0:00:25"]
[BlackClock "0:00:03"]

1. e4 {[%clk 0:02:59]}  e6 {[%clk 0:03:00]} 2. d4 {[%clk 0:02:58]}  d5 {[%clk 0:03:00]} 3. exd5 {[%clk 0:02:59]}  exd5 {[%clk 0:03:00]} 4. Bd3 {[%clk 0:03:00]}  Nc6 {[%clk 0:02:47]} 5. c3 {[%clk 0:02:58]}  Bd6 {[%clk 0:02:46]} 6. h3 {[%clk 0:02:56]}  Nge7 {[%clk 0:02:44]} 7. Nf3 {[%clk 0:02:56]}  Bf5 {[%clk 0:02:43]} 8. O-O {[%clk 0:02:56]}  Qd7 {[%clk 0:02:36]} 9. Bxf5 {[%clk 0:02:52]}  Qxf5 {[%clk 0:02:35]} 10. b4 {[%clk 0:02:48]}  O-O {[%clk 0:02:33]} 11. Re1 {[%clk 0:02:42]}  Ng6 {[%clk 0:02:32]} 12. b5 {[%clk 0:02:40]}  Na5 {[%clk 0:02:31]} 13. Nbd2 {[%clk 0:02:28]}  Rae8 {[%clk 0:02:25]} 14. Rxe8 {[%clk 0:02:25]}  Rxe8 {[%clk 0:02:24]} 15. Nf1 {[%clk 0:02:25]}  Nf4 {[%clk 0:02:05]} 16. Bxf4 {[%clk 0:02:24]}  Bxf4 {[%clk 0:02:02]} 17. Qa4 {[%clk 0:02:22]}  b6 {[%clk 0:01:57]} 18. Re1 {[%clk 0:02:10]}  Rxe1 {[%clk 0:01:52]} 19. Nxe1 {[%clk 0:02:11]}  Qb1 {[%clk 0:01:33]} 20. Nf3 {[%clk 0:01:42]}  Qb2 {[%clk 0:01:23]} 21. g3 {[%clk 0:01:33]}  Bd6 {[%clk 0:01:08]} 22. Ne3 {[%clk 0:01:15]}  Qxc3 {[%clk 0:01:07]} 23. Kg2 {[%clk 0:01:12]}  Nc4 {[%clk 0:00:50]} 24. Nxd5 {[%clk 0:01:06]}  Qc1 {[%clk 0:00:36]} 25. Qxa7 {[%clk 0:01:06]}  h6 {[%clk 0:00:33]} 26. Qb8+ {[%clk 0:01:04]}  Kh7 {[%clk 0:00:33]} 27. Qc8 {[%clk 0:01:00]}  Qc2 {[%clk 0:00:30]} 28. Qd7 {[%clk 0:00:54]}  Qg6 {[%clk 0:00:25]} 29. h4 {[%clk 0:00:51]}  Qe6 {[%clk 0:00:20]} 30. Qxe6 {[%clk 0:00:48]}  fxe6 {[%clk 0:00:21]} 31. Ne3 {[%clk 0:00:49]}  Na3 {[%clk 0:00:17]} 32. Nd2 {[%clk 0:00:46]}  Nxb5 {[%clk 0:00:16]} 33. Nb3 {[%clk 0:00:45]}  Kg6 {[%clk 0:00:15]} 34. d5 {[%clk 0:00:44]}  exd5 {[%clk 0:00:14]} 35. Nxd5 {[%clk 0:00:45]}  Kf7 {[%clk 0:00:13]} 36. a4 {[%clk 0:00:44]}  Na7 {[%clk 0:00:11]} 37. Nd4 {[%clk 0:00:41]}  Nc8 {[%clk 0:00:10]} 38. Nc6 {[%clk 0:00:40]}  Ke8 {[%clk 0:00:08]} 39. Kf3 {[%clk 0:00:38]}  Kd7 {[%clk 0:00:08]} 40. Nd4 {[%clk 0:00:38]}  c6 {[%clk 0:00:08]} 41. Ne3 {[%clk 0:00:36]}  Bc5 {[%clk 0:00:08]} 42. Ndf5 {[%clk 0:00:36]}  Bf8 {[%clk 0:00:09]} 43. Nc4 {[%clk 0:00:35]}  b5 {[%clk 0:00:08]} 44. Ne5+ {[%clk 0:00:33]}  Kc7 {[%clk 0:00:07]} 45. a5 {[%clk 0:00:30]}  Nd6 {[%clk 0:00:06]} 46. Nd4 {[%clk 0:00:28]}  c5 {[%clk 0:00:05]} 47. Ne6+ {[%clk 0:00:28]}  Kb7 {[%clk 0:00:05]} 48. Nxf8 {[%clk 0:00:29]}  Ka6 {[%clk 0:00:03]} 49. Nd3 {[%clk 0:00:28]}  c4 {[%clk 0:00:02]} 50. Nc5+ {[%clk 0:00:26]}  Kxa5 {[%clk 0:00:03]} 51. Nfe6 {[%clk 0:00:26]}  b4 {[%clk 0:00:03]} 52. Nd4 {[%clk 0:00:25]} 1-0


[Site "https://www.chess.com"]

[Event "Titled Tuesday Blitz March 14 Late 2023"]
[White "Michalski, Olaf"]
[Black "Pino Perez, Lazaro"]
[WhiteFideId "1106740"]
[BlackFideId "3517055"]
[WhiteElo "2173"]
[BlackElo "2170"]
[Result "0-1"]
[Round "07"]
[TimeControl "180+2"]
[Date "2023.03.14"]
[WhiteClock "0:01:06"]
[BlackClock "0:01:34"]

1. d4 {[%clk 0:02:57]}  d5 {[%clk 0:02:59]} 2. c4 {[%clk 0:02:56]}  e6 {[%clk 0:02:59]} 3. Nc3 {[%clk 0:02:55]}  Be7 {[%clk 0:02:59]} 4. Bf4 {[%clk 0:02:52]}  Nf6 {[%clk 0:02:42]} 5. e3 {[%clk 0:02:52]}  O-O {[%clk 0:02:41]} 6. Rc1 {[%clk 0:02:51]}  b6 {[%clk 0:02:36]} 7. cxd5 {[%clk 0:02:43]}  exd5 {[%clk 0:02:37]} 8. Bd3 {[%clk 0:02:34]}  c5 {[%clk 0:02:32]} 9. Nge2 {[%clk 0:02:20]}  Nc6 {[%clk 0:02:22]} 10. O-O {[%clk 0:02:16]}  Bb7 {[%clk 0:02:23]} 11. dxc5 {[%clk 0:02:11]}  bxc5 {[%clk 0:02:21]} 12. Ng3 {[%clk 0:02:10]}  g6 {[%clk 0:02:12]} 13. b3 {[%clk 0:02:01]}  Rc8 {[%clk 0:02:08]} 14. Na4 {[%clk 0:01:59]}  Nb4 {[%clk 0:02:00]} 15. Bb1 {[%clk 0:01:57]}  Ba6 {[%clk 0:02:01]} 16. Re1 {[%clk 0:01:56]}  c4 {[%clk 0:01:53]} 17. a3 {[%clk 0:01:20]}  Nd3 {[%clk 0:01:48]} 18. Bxd3 {[%clk 0:01:20]}  cxd3 {[%clk 0:01:49]} 19. b4 {[%clk 0:01:20]}  Ne4 {[%clk 0:01:43]} 20. f3 {[%clk 0:01:06]}  Rxc1 {[%clk 0:01:34]} 0-1


[Site "https://www.chess.com"]

[Event "Titled Tuesday Blitz March 14 Late 2023"]
[White "Ardila, Oscar Humberto"]
[Black "Curtis, John"]
[WhiteFideId "4404742"]
[BlackFideId "3200256"]
[WhiteElo "1911"]
[BlackElo "2203"]
[Result "0-1"]
[Round "07"]
[TimeControl "180+2"]
[Date "2023.03.14"]
[WhiteClock "0:00:07"]
[BlackClock "0:00:37"]

1. d4 {[%clk 0:03:00]}  Nf6 {[%clk 0:02:51]} 2. c4 {[%clk 0:02:59]}  e6 {[%clk 0:02:50]} 3. Nf3 {[%clk 0:02:55]}  d5 {[%clk 0:02:50]} 4. Bg5 {[%clk 0:02:54]}  Be7 {[%clk 0:02:49]} 5. e3 {[%clk 0:02:54]}  c6 {[%clk 0:02:49]} 6. Bd3 {[%clk 0:02:52]}  Nbd7 {[%clk 0:02:48]} 7. O-O {[%clk 0:02:52]}  h6 {[%clk 0:02:45]} 8. Bh4 {[%clk 0:02:51]}  dxc4 {[%clk 0:02:44]} 9. Bxc4 {[%clk 0:02:51]}  Ne4 {[%clk 0:02:44]} 10. Bxe7 {[%clk 0:02:47]}  Qxe7 {[%clk 0:02:44]} 11. Qc2 {[%clk 0:02:47]}  Nd6 {[%clk 0:02:43]} 12. Bd3 {[%clk 0:02:45]}  e5 {[%clk 0:02:43]} 13. dxe5 {[%clk 0:02:43]}  Nxe5 {[%clk 0:02:42]} 14. Nxe5 {[%clk 0:02:43]}  Qxe5 {[%clk 0:02:43]} 15. Nc3 {[%clk 0:02:42]}  Bf5 {[%clk 0:02:40]} 16. Rad1 {[%clk 0:02:41]}  Bxd3 {[%clk 0:02:39]} 17. Rxd3 {[%clk 0:02:40]}  O-O-O {[%clk 0:02:30]} 18. Rfd1 {[%clk 0:02:40]}  f5 {[%clk 0:02:16]} 19. Qd2 {[%clk 0:02:35]}  Nf7 {[%clk 0:02:13]} 20. Qc2 {[%clk 0:02:25]}  Rxd3 {[%clk 0:02:11]} 21. Rxd3 {[%clk 0:02:25]}  Rd8 {[%clk 0:02:10]} 22. Qd2 {[%clk 0:02:23]}  Rxd3 {[%clk 0:02:09]} 23. Qxd3 {[%clk 0:02:23]}  Nd6 {[%clk 0:02:08]} 24. f4 {[%clk 0:02:18]}  Qe6 {[%clk 0:02:08]} 25. Qd4 {[%clk 0:02:15]}  g6 {[%clk 0:02:03]} 26. Kf2 {[%clk 0:01:53]}  b6 {[%clk 0:01:30]} 27. Qh8+ {[%clk 0:01:51]}  Kb7 {[%clk 0:01:30]} 28. Qxh6 {[%clk 0:01:41]}  Ne4+ {[%clk 0:01:27]} 29. Nxe4 {[%clk 0:01:41]}  fxe4 {[%clk 0:01:24]} 30. Qg7+ {[%clk 0:01:40]}  Ka6 {[%clk 0:01:23]} 31. a3 {[%clk 0:01:37]}  b5 {[%clk 0:01:22]} 32. Qc3 {[%clk 0:01:36]}  Kb7 {[%clk 0:01:18]} 33. h3 {[%clk 0:01:36]}  Kb6 {[%clk 0:01:09]} 34. g4 {[%clk 0:01:35]}  c5 {[%clk 0:01:08]} 35. Kg3 {[%clk 0:01:26]}  a5 {[%clk 0:01:08]} 36. Qh8 {[%clk 0:01:22]}  b4 {[%clk 0:01:05]} 37. axb4 {[%clk 0:01:19]}  cxb4 {[%clk 0:01:03]} 38. Qb8+ {[%clk 0:01:19]}  Ka6 {[%clk 0:01:03]} 39. Qa8+ {[%clk 0:01:19]}  Kb5 {[%clk 0:01:02]} 40. Qd8 {[%clk 0:01:02]}  a4 {[%clk 0:01:00]} 41. Qd4 {[%clk 0:00:56]}  a3 {[%clk 0:00:59]} 42. bxa3 {[%clk 0:00:50]}  bxa3 {[%clk 0:00:59]} 43. Qc3 {[%clk 0:00:40]}  Ka4 {[%clk 0:00:53]} 44. Qc7 {[%clk 0:00:34]}  Kb3 {[%clk 0:00:46]} 45. Qb7+ {[%clk 0:00:33]}  Kc2 {[%clk 0:00:45]} 46. Qc7+ {[%clk 0:00:32]}  Kb2 {[%clk 0:00:45]} 47. Qb7+ {[%clk 0:00:30]}  Qb3 {[%clk 0:00:43]} 48. Qg7+ {[%clk 0:00:26]}  Qc3 {[%clk 0:00:42]} 49. Qb7+ {[%clk 0:00:25]}  Kc1 {[%clk 0:00:43]} 50. Qa6 {[%clk 0:00:16]}  Qxe3+ {[%clk 0:00:41]} 51. Kh4 {[%clk 0:00:17]}  Kb2 {[%clk 0:00:38]} 52. Qb5+ {[%clk 0:00:16]}  Qb3 {[%clk 0:00:38]} 53. Qe2+ {[%clk 0:00:15]}  Qc2 {[%clk 0:00:39]} 54. Qb5+ {[%clk 0:00:15]}  Kc1 {[%clk 0:00:38]} 55. Qf1+ {[%clk 0:00:13]}  Kb2 {[%clk 0:00:38]} 56. Qb5+ {[%clk 0:00:13]}  Ka1 {[%clk 0:00:38]} 57. Kg5 {[%clk 0:00:10]}  e3 {[%clk 0:00:38]} 58. f5 {[%clk 0:00:09]}  gxf5 {[%clk 0:00:38]} 59. gxf5 {[%clk 0:00:09]}  e2 {[%clk 0:00:38]} 60. Qe5+ {[%clk 0:00:09]}  Qb2 {[%clk 0:00:38]} 61. Qe4 {[%clk 0:00:07]}  Qd2+ {[%clk 0:00:37]} 62. Kg6 {[%clk 0:00:07]}  e1=Q {[%clk 0:00:37]} 0-1


[Site "https://www.chess.com"]